Cogmind - Beta 14 @@@ ROGUE MODE // 2024.09.08 @ 23:50:08 Player: THN-L0C Result: Destroyed by H-88 Terminator with KE Penetrator Performance ------------- Evolutions (6) 3000 Regions Visited (12) 2400 Robots Destroyed (106) 530 Value Destroyed (4470) 4470 Prototype IDs (12) 240 Alien Tech Used (0) 0 Bonus (3013) 3013 TOTAL SCORE: 13653 Bonus ------- High Alert Combat Kills 960 Follower Combat Kills 1428 Registered with UFD 300 MAIN.C Attacked Warlord 500 Warlord Defense Kills 688 Friendly Fire -863 Cogmind --------- Core Integrity 0/1150 Matter 290/300 Energy 100/100 System Corruption 0% Temperature Cool (0) Movement Core (1500) Ox29 Location -4/Warlord Parts ------- > --- POWER (2) -------- (None) > --- PROPULSION (4) --- (None) > --- UTILITY (10) ----- Huge Storage Unit Armor Integrity Analyzer Graphene Brace > --- WEAPON (3) ------- Vortex Shotgun > --- INVENTORY (25) --- Advanced Heat Sink Matter Compressor (250) Improved Transmission Jammer Centrium Light Armor Plating Centrium Light Armor Plating Enhanced Scrap Shield Advanced Thermal Shield Improved Force Field Advanced Field Recycling Unit (0) Vortex Shotgun (50) Enhanced Quantum Rifle Autogun Multitool Peak State ------------ > --- POWER ------------ Antimatter Reactor Antimatter Reactor > --- PROPULSION ------- Biometal Heavy Treads Overtuned Huge Scrapsphere > --- UTILITY ---------- Scrap Suit Advanced Heat Sink Makeshift Microdissipator Network Makeshift Microdissipator Network Huge Storage Unit Makeshift Salvage Targeting Computer Improved Medium Armor Plating Graphene Brace Remote Force Field > --- WEAPON ----------- Overtuned Beamcaster Overtuned Beamcaster Railgun > --- INVENTORY -------- Antimatter Reactor Antimatter Reactor Overtuned Huge Scrapsphere Centrium Wheel Scrap Suit Scrap Suit Advanced Heat Sink Improved Coolant Injector Matter Compressor Armor Integrity Analyzer Improved Transmission Jammer Hardened Heavy Armor Plating Improved Force Field Improved Force Field System Restoration Module Advanced Field Recycling Unit Enhanced Quantum Rifle Enhanced Quantum Rifle Matter Neutralizer Improved Remote Datajack Multitool [Rating: 120] Favorites ----------- Power Antimatter Reactor Engine Improved Ion Engine Power Core Neutrino Core Reactor Antimatter Reactor Propulsion Light Treads Treads Light Treads Wheel Overtuned Huge Scrapsphere Utility Makeshift Microdissipator Network Device Makeshift Microdissipator Network Storage Huge Storage Unit Processor Makeshift Salvage Targeting Computer Hackware Advanced Hacking Suite Protection Makeshift Light Armor Plating Weapon Overtuned Beamcaster Energy Gun Overtuned Beamcaster Energy Cannon Heavy Ion Cannon Ballistic Gun Assault Rifle Ballistic Cannon Battle Cannon Launcher Grenade Launcher Special Weapon Multitool Piercing Weapon Makeshift Spear Build | -11 -10 -10 -10 -7 -7 -5 -5 -5 -4 -4 -4 -4 ------- Run | Yrd Mat Min Sub Rec Scr Fac Was Fac Fac Upp Upp War Slots Evolved 12 | . . . . . . 10 . . 2 . . . Power 1 | . . . . . . 1 . . . . . . Propulsion 2 | . . . . . . . . . 2 . . . Utility 8 | . . . . . . 8 . . . . . . Weapon 1 | . . . . . . 1 . . . . . . Parts Attached 147 | 7 3 6 20 10 5 12 2 33 26 16 4 3 Power 18 | 1 1 . . 1 1 1 1 5 6 . 1 . Engine 4 | 1 1 . . . 1 . . 1 . . . . Core 7 | . . . . 1 . 1 . 4 . . 1 . Reactor 7 | . . . . . . . 1 . 6 . . . Propulsion 12 | 2 . 1 . 3 . . 1 1 2 1 . 1 Treads 7 | 2 . 1 . 2 . . 1 . 1 . . . Leg . | . . . . . . . . . . . . . Wheel 5 | . . . . 1 . . . 1 1 1 . 1 Hover . | . . . . . . . . . . . . . Flight . | . . . . . . . . . . . . . Utility 67 | 2 1 1 9 . 2 9 . 19 11 11 2 . Device 33 | 1 . . 4 . . 4 . 10 6 7 1 . Storage 9 | 1 1 . 1 . . 4 . 2 . . . . Processor 5 | . . . . . . 1 . 3 1 . . . Hackware 3 | . . . . . . . . 3 . . . . Protection 17 | . . 1 4 . 2 . . 1 4 4 1 . Artifact . | . . . . . . . . . . . . . Weapon 50 | 2 1 4 11 6 2 2 . 8 7 4 1 2 Energy Gun 8 | . . . . . . . . 3 . 3 . 2 Energy Cannon 8 | . . . 2 2 . 1 . 1 2 . . . Ballistic Gun 16 | 2 1 3 2 2 2 . . 1 2 1 . . Ballistic Cannon 3 | . . . 1 . . . . 2 . . . . Launcher 4 | . . 1 3 . . . . . . . . . Special Weapon 6 | . . . . 1 . 1 . 1 3 . . . Impact Weapon . | . . . . . . . . . . . . . Slashing Weapon . | . . . . . . . . . . . . . Piercing Weapon 5 | . . . 3 1 . . . . . . 1 . Special Melee Weapon . | . . . . . . . . . . . . . Unidentified Prototypes 4 | . . . . . . . . 1 1 1 . 1 Parts Lost 42 | . 1 . . . . 1 1 8 10 9 . 12 Power 7 | . . . . . . . . 2 2 1 . 2 Propulsion 4 | . . . . . . . . . 1 . . 3 Utility 19 | . 1 . . . . . . 4 5 5 . 4 Weapon 12 | . . . . . . 1 1 2 2 3 . 3 Highest Loss Streak 12 | . 1 . . . . 1 1 2 7 6 . 12 To Critical Strikes . | . . . . . . . . . . . . . Average Slot Usage (%) 83 | . 88 99 97 96 85 79 24 75 83 77 69 69 Engine 4 | . 14 14 14 3 . 5 1 . . . . . Core 4 | . . . . 10 13 . 1 6 2 . . 4 Reactor 2 | . . . . . . . . 2 7 9 5 4 Treads 10 | . 28 28 28 21 . . . 2 4 . . . Wheel 4 | . . . . 3 14 5 1 2 5 10 10 8 Device 14 | . 2 . 11 . . 13 5 19 32 28 26 22 Storage 10 | . 14 21 12 14 14 24 6 4 5 5 5 5 Processor 3 | . . . . . . 5 1 7 5 9 5 5 Hackware 1 | . . . . . . . . 8 . . . . Protection 5 | . . 7 2 14 14 5 1 1 2 . 5 4 Energy Gun 3 | . . . . . . . . 4 9 11 10 8 Energy Cannon 2 | . . . . 2 13 1 1 1 . . . . Ballistic Gun 5 | . 28 18 11 2 . 11 1 3 2 . . . Ballistic Cannon 1 | . . . 3 7 . . . 3 . . . . Launcher 1 | . . 9 8 . . . . . . . . . Piercing Weapon 4 | . . . 5 12 13 . . . . . 1 4 Peak Build Rating 120 | 7 9 11 17 28 29 71 68 98 120 116 113 118 Average Rating 56 | 5 8 9 12 22 28 65 20 82 114 105 102 101 On Entrance 44 | . 7 9 11 17 28 27 67 27 95 91 84 113 Naked Turns 115 | . . . . . . . 115 . . . . . Heaviest Build 157 | 15 36 37 37 40 40 73 69 149 157 157 150 153 Greatest Support 84 | 40 40 40 40 48 28 28 75 84 75 40 40 40 Greatest Overweight (x) 29 | . . . . 1 1 2 4 6 7 5 6 29 Average Overweight (x) 2 | . . . . . 1 1 . 3 6 3 4 3 Largest Inventory Capacity 25 | 8 15 15 15 15 15 15 15 25 25 25 25 25 Average Capacity 18 | 7 8 15 13 15 15 15 7 24 25 25 25 25 Most Carried 25 | 2 9 15 15 15 15 15 15 25 25 18 11 17 Average Carried 13 | . 7 12 13 14 14 14 7 12 24 13 8 11 Final Capacity 25 | 8 15 15 15 15 15 15 5 25 25 25 25 25 Final Carried 25 | 2 9 15 14 15 15 15 3 25 17 11 9 14 Class Distribution -------------------- 50% | Mutant 31% | Scavenger-Scrapper 5% | Commander-Mutant 4% | Tank 3% | Hacker-Mutant Dominant Class ---------------- Mutant | -10/Materials Mutant | -10/Mines Mutant | -10/Subcaves Commander-Mutant | -7/Recycling Mutant | -7/Scraptown Tank | -5/Factory Mutant | -5/Waste Scavenger-Scrapper | -5/Factory Scavenger-Scrapper | -4/Factory Scavenger-Scrapper | -4/Upper Caves Scavenger-Scrapper | -4/Upper Caves Scavenger-Scrapper | -4/Warlord Resources | -11 -10 -10 -10 -7 -7 -5 -5 -5 -4 -4 -4 -4 ----------- Run | Yrd Mat Min Sub Rec Scr Fac Was Fac Fac Upp Upp War Matter Collected 4462 | 284 109 197 281 1016 20 439 . 1247 643 155 61 10 Remotely . | . . . . . . . . . . . . . Salvage Created 6506 | 107 194 137 97 785 . 213 . 1754 2386 294 342 197 Parts 233 | 4 17 13 6 26 . 8 . 61 77 10 9 2 Haulers Intercepted . | . . . . . . . . . . . . . Recyclers Shooed 6 | 1 . . . . . . . 4 1 . . . Parts Field Recycled . | . . . . . . . . . . . . . Retrieved Matter . | . . . . . . . . . . . . . Parts Self-Destructed 23 | . . . 16 . . . . . . 7 . . Prevented . | . . . . . . . . . . . . . Kills | -11 -10 -10 -10 -7 -7 -5 -5 -5 -4 -4 -4 -4 ------- Run | Yrd Mat Min Sub Rec Scr Fac Was Fac Fac Upp Upp War Combat Hostiles Destroyed 81 | . 8 3 2 1 . 9 . 19 27 7 . 5 Melee 1 | . . . . . . . . . 1 . . . Guns 54 | . 8 1 1 . . 5 . 9 20 5 . 5 Cannons 16 | . . . . 1 . 4 . 10 . 1 . . AOE 3 | . . 2 1 . . . . . . . . . Classes Destroyed 18 | 2 3 1 2 1 . 1 . 2 3 . . 3 Worker 2 | . . . . . . . . . 2 . . . Builder 1 | . . 1 . . . . . . . . . . Tunneler 2 | 1 . 1 . . . . . . . . . . Recycler 15 | 1 . 1 . 8 . . . 4 1 . . . Watcher 2 | . 1 . . . . . . 1 . . . . Swarmer 29 | . 6 3 . . . 8 . 5 . 5 . 2 Saboteur 1 | . . . . . . . . . 1 . . . Grunt 25 | . 2 . . . . . . 6 17 . . . Brawler 1 | . . . . . . . . . . . . 1 Duelist 1 | . . . . . . . . . 1 . . . Sentry 4 | . . . . 1 . . . 3 . . . . Hunter 9 | . . . . . . 1 . 1 5 2 . . Programmer 7 | . . . . . . . . 4 3 . . . Behemoth 1 | . . . . . . . . . . . . 1 Striker 1 | . . . . . . . . . . . . 1 Artisan 1 | . . . 1 . . . . . . . . . Subdweller 2 | . . . 2 . . . . . . . . . Scrapoid 3 | . . . . . . . . 3 . . . . Decomposer 2 | . . . . . . . . . . . 2 . Best Kill Streak 5 | 2 4 4 1 4 . 4 . 3 5 5 . 4 Combat Bots Only 5 | . 3 3 1 1 . 4 . 3 5 5 . 4 Max Kills in Single Turn 2 | 1 2 2 1 1 . 2 . 1 1 1 1 1 Gunslinging 1 | . 1 . . . . . . . . . . . Exploded 1 | . . 1 1 . . . . . . . . . Melee 1 | . . . . . . . . . 1 . . . Uniques/NPCs Destroyed . | . . . . . . . . . . . . . Combat | -11 -10 -10 -10 -7 -7 -5 -5 -5 -4 -4 -4 -4 -------- Run | Yrd Mat Min Sub Rec Scr Fac Was Fac Fac Upp Upp War Hostile Shots Fired 773 | . 46 13 12 27 . 79 2 139 255 122 . 78 Missed 210 | . 15 4 3 8 . 19 1 41 72 32 . 15 Damage Taken 10488 | . 349 67 211 103 . 739 196 1386 3057 1639 36 2705 Core 1484 | . 89 19 30 12 . 57 36 83 227 168 12 751 Absorbed by Shields 1935 | . . . . 44 . 210 . 570 966 . . 145 Reduced by Siege Mode 75 | . . . . . . . . . 75 . . . Regen/Repaired (Parts) 1018 | . . . . . . . . 81 795 . . 142 Core Remaining (%) 74 | 100 . . . . 40 . . 82 . . . . Volleys Fired 316 | 5 26 7 19 8 . 20 1 96 97 21 4 12 Largest 3 | 2 2 2 2 2 . 3 1 3 3 3 2 2 Hottest 305 | 40 40 43 53 81 . 136 28 230 305 270 130 125 Shots Fired 716 | 10 52 9 29 12 . 57 1 227 234 56 9 20 Gun 584 | 10 52 7 16 3 . 40 1 153 228 45 9 20 Cannon 123 | . . . 10 9 . 16 . 74 3 11 . . Launcher 5 | . . 2 3 . . . . . . . . . Special 4 | . . . . . . 1 . . 3 . . . Kinetic 341 | 10 52 7 26 7 . 40 1 119 74 5 . . Thermal 354 | . . . . 2 . 17 . 108 160 50 9 8 Explosive 5 | . . 2 3 . . . . . . . . . Electromagnetic 4 | . . . . 3 . . . . . 1 . . Entropic 12 | . . . . . . . . . . . . 12 Robot Hit Streak 15 | 5 9 4 14 3 . 7 2 15 14 7 8 5 Robot Miss Streak 9 | 1 5 2 1 1 . 8 1 6 9 3 . 6 Penetration Max 1 | . . . . . . . . 1 1 . . . Secondary Targets 14 | . 2 . . . . . . . 10 1 . 1 Max Gunslinging Chain 1 | . 1 . . . . . . . 1 1 . 1 Shots Hit Robots 458 | 9 29 6 15 18 . 41 1 141 139 35 10 14 Core Hits 225 | 3 13 6 5 8 . 42 . 54 67 9 7 11 Critical Kills 13 | . . . . . . . . 11 2 . . . Critical Parts Destroyed 13 | . . . . . . . . 12 . . . 1 Critical Strikes 63 | . . . 1 . . . . 36 24 1 . 1 Burn 30 | . . . . . . . . 7 22 1 . . Meltdown 1 | . . . . . . . . 1 . . . . Destroy 31 | . . . 1 . . . . 28 2 . . . Detonate 1 | . . . . . . . . . . . . 1 Melee Attacks 58 | . . . 28 18 . . . . . . 4 8 Impact . | . . . . . . . . . . . . . Slashing . | . . . . . . . . . . . . . Piercing 58 | . . . 28 18 . . . . . . 4 8 Sneak Attacks 11 | . . . . 11 . . . . . . . . Combat Hostiles . | . . . . . . . . . . . . . Follow-up Attacks . | . . . . . . . . . . . . . Damage Inflicted 12962 | 117 374 188 268 830 . 744 27 3713 4348 1058 510 785 Guns 9129 | 108 374 51 186 29 . 483 27 2307 4013 694 179 678 Cannons 2154 | . . . . 99 . 257 . 1400 34 364 . . Explosions 606 | . . 137 82 . . . . . 280 . . 107 Melee 1033 | . . . . 702 . . . . . . 331 . Ramming 36 | 9 . . . . . . . 6 21 . . . Kinetic 4333 | 108 374 51 186 110 . 483 27 1659 1297 38 . . Thermal 6485 | . . . . . . 261 . 2048 2750 1015 179 232 Explosive 499 | . . 137 82 . . . . . 280 . . . Electromagnetic 23 | . . . . 18 . . . . . 5 . . Impact . | . . . . . . . . . . . . . Slashing . | . . . . . . . . . . . . . Piercing 1033 | . . . . 702 . . . . . . 331 . Entropic 553 | . . . . . . . . . . . . 553 Highest Corruption 7 | . 2 2 2 3 . . . 4 4 7 7 7 Average Corruption 2 | . 2 2 2 2 . . . 3 2 7 7 7 Corruption Purged 4 | . . . . . . . . . 4 . . . Corruption Blocked . | . . . . . . . . . . . . . Effects 74 | . 2 7 18 21 . . . 8 3 2 13 . Message Errors 17 | . . 1 3 4 . . . 2 1 . 6 . Matter Fused 15 | . 1 1 4 6 . . . 1 . . 2 . Heat Flow Errors 10 | . . 2 3 2 . . . . 1 1 1 . Energy Discharges 13 | . . . 3 4 . . . 3 . . 3 . Parts Rejected 1 | . 1 . . . . . . . . . . . Data Loss (minor) 10 | . . 2 3 3 . . . 1 . 1 . . Data Loss (major) 2 | . . 1 . . . . . 1 . . . . Misfires 4 | . . . 2 1 . . . . . . 1 . Alerts 1 | . . . . 1 . . . . . . . . Weapon Failures 1 | . . . . . . . . . 1 . . . Overload Shots . | . . . . . . . . . . . . . Overflow Damage 302 | . . 6 . 183 . . . 19 66 28 . . Projectiles 53 | . . . . 6 . . . 19 . 28 . . Explosions 72 | . . 6 . . . . . . 66 . . . Melee 177 | . . . . 177 . . . . . . . . Knockbacks 6 | . . . . . . . . 6 . . . . Impact . | . . . . . . . . . . . . . Kinetic 5 | . . . . . . . . 5 . . . . Secondary 1 | . . . . . . . . 1 . . . . Self-Inflicted Damage 186 | . . . 24 . . . . . 162 . . . Shots 3 | . . . 1 . . . . . 2 . . . Rammed 6 | 2 1 . . . . . . 2 1 . . . Targets Rammed 6 | 2 1 . . . . . . 2 1 . . . Kicked . | . . . . . . . . . . . . . Crushed . | . . . . . . . . . . . . . Highest Temperature 435 | . 21 282 253 267 . 75 . 435 200 200 194 . Average Temperature 137 | . 7 140 108 85 . 38 . 146 149 162 68 . Received Heat Transfer 930 | . 150 . 36 30 . 30 . 311 246 96 . 31 Effects 18 | . . . . . . . . 9 5 4 . . Shutdowns 4 | . . . . . . . . 4 . . . . Energy Bleed 7 | . . . . . . . . 3 3 1 . . Interference 5 | . . . . . . . . . 2 3 . . Matter Decay 1 | . . . . . . . . 1 . . . . Damage (minor) 1 | . . . . . . . . 1 . . . . Siege Activations 3 | . . . . . . . . . 3 . . . Total Turns 79 | . . . . . . . . . 79 . . . Longest Duration 41 | . . . . . . . . . 41 . . . Robots Corrupted . | . . . . . . . . . . . . . Combat Hostiles . | . . . . . . . . . . . . . Parts Fried . | . . . . . . . . . . . . . Impact Corruptions . | . . . . . . . . . . . . . Robots Melted 8 | . . . . . . . . 1 6 1 . . Combat Hostiles 7 | . . . . . . . . . 6 1 . . Parts Melted 74 | . . . . . . 1 . 15 53 5 . . Heat Transferred 12234 | . . . . . . 525 . 3191 6844 1273 222 179 Parts Sabotaged . | . . . . . . . . . . . . . Parts Stolen . | . . . . . . . . . . . . . Parts Stripped . | . . . . . . . . . . . . . Power Chain Reactions . | . . . . . . . . . . . . . Alert | -11 -10 -10 -10 -7 -7 -5 -5 -5 -4 -4 -4 -4 ------- Run | Yrd Mat Min Sub Rec Scr Fac Was Fac Fac Upp Upp War Peak Influence 1320 | 10 212 121 . 118 . 242 86 512 1320 . . . Initial 250 | . 6 30 . 14 . . 81 60 250 . . . Average 208 | 4 93 86 . 42 . 44 80 174 601 . . . Maximum Alert Level 4 | . 1 . . . . 1 . 2 4 . . . Low Security (%) 64 | 100 74 100 . 100 . 97 100 61 . . . . Level 1 21 | . 25 . . . . 2 . 33 39 . . . Level 2 9 | . . . . . . . . 5 37 . . . Level 3 . | . . . . . . . . . 3 . . . Level 4 4 | . . . . . . . . . 20 . . . Level 5 . | . . . . . . . . . . . . . High Security . | . . . . . . . . . . . . . Max Security . | . . . . . . . . . . . . . Squads Dispatched 19 | . 1 . . . . 2 . 9 7 . . . Investigation 5 | . . . . . . 1 . 3 1 . . . Extermination 6 | . . . . . . 1 . 3 2 . . . Reinforcement 3 | . 1 . . . . . . 1 1 . . . Assault 3 | . . . . . . . . . 3 . . . Garrison 2 | . . . . . . . . 2 . . . . Intercept . | . . . . . . . . . . . . . Searches Triggered . | . . . . . . . . . . . . . Construction Impeded . | . . . . . . . . . . . . . Haulers Reinforced 1 | . . . . . . . . 1 . . . . Active Scanning Responses . | . . . . . . . . . . . . . Cargo Convoy Interrupts 1 | . . . . . . . . . 1 . . . Stealth | -11 -10 -10 -10 -7 -7 -5 -5 -5 -4 -4 -4 -4 --------- Run | Yrd Mat Min Sub Rec Scr Fac Was Fac Fac Upp Upp War Distress Signals 4 | . 1 . . . . . . . 3 . . . Communications Jammed . | . . . . . . . . . . . . . Distress Signals . | . . . . . . . . . . . . . Times Spotted 178 | . 12 3 5 2 . 14 8 38 53 17 . 26 Peak Tracking Total 8 | . 3 3 1 1 . 5 6 5 7 7 . 8 Tactical Retreats 12 | . . . 3 . . 2 1 3 1 1 . 1 Traps | -11 -10 -10 -10 -7 -7 -5 -5 -5 -4 -4 -4 -4 ------- Run | Yrd Mat Min Sub Rec Scr Fac Was Fac Fac Upp Upp War Traps Triggered 3 | . 1 . . . . 1 . . . . 1 . Indirectly . | . . . . . . . . . . . . . Trap Hack Attempts . | . . . . . . . . . . . . . Triggered . | . . . . . . . . . . . . . Disarmed . | . . . . . . . . . . . . . Reprogrammed . | . . . . . . . . . . . . . Reused 3 | . . . . . . . 3 . . . . . Traps Extracted . | . . . . . . . . . . . . . Installed 3 | . . . . . . . 3 . . . . . Triggered 18 | . . . 2 . . . . . 1 . . 15 Most Traps Carried 3 | . . . . . 3 3 3 . . . . . Machines | -11 -10 -10 -10 -7 -7 -5 -5 -5 -4 -4 -4 -4 ---------- Run | Yrd Mat Min Sub Rec Scr Fac Was Fac Fac Upp Upp War Machines Disabled 28 | . . . . . . . . 4 22 . . 2 Max in Single Turn 2 | . . . . . . . . 1 2 . . 1 Garrison Access 1 | . . . . . . . . 1 . . . . Machines Repaired . | . . . . . . . . . . . . . Machines Dismantled . | . . . . . . . . . . . . . Machines Sabotaged . | . . . . . . . . . . . . . Overloaded Fab Kills . | . . . . . . . . . . . . . Hacking | -11 -10 -10 -10 -7 -7 -5 -5 -5 -4 -4 -4 -4 --------- Run | Yrd Mat Min Sub Rec Scr Fac Was Fac Fac Upp Upp War Machines Accessed 39 | . 7 . . 13 1 3 . 6 7 . . 2 Terminals 18 | . 6 . . 6 . 2 . 1 3 . . . Fabricators 3 | . . . . . . . . 1 2 . . . Repair Stations 1 | . . . . . . . . . 1 . . . Recycling Units 13 | . 1 . . 7 . 1 . 3 1 . . . Scanalyzers . | . . . . . . . . . . . . . Garrison Access 1 | . . . . . . . . 1 . . . . Total Hacks 77 | . 22 . . 29 1 4 . 8 8 . . 5 Successful 43 | . 12 . . 14 1 1 . 5 5 . . 5 Failed 34 | . 10 . . 15 . 3 . 3 3 . . . Catastrophic 7 | . . . . 4 . 2 . 1 . . . . Database Lockouts . | . . . . . . . . . . . . . Manual 46 | . 15 . . 17 . 4 . 6 4 . . . Terminals 37 | . 19 . . 12 . 2 . 1 3 . . . Fabricators 3 | . . . . . . . . 1 2 . . . Repair Stations 2 | . . . . . . . . . 2 . . . Recycling Units 28 | . 3 . . 17 . 2 . 5 1 . . . Scanalyzers . | . . . . . . . . . . . . . Garrison Access 1 | . . . . . . . . 1 . . . . Terminal Hacks 9 | . 2 . . . 1 . . 1 . . . 5 Record 4 | . . . . . . . . . . . . 4 Prototype ID Bank 1 | . 1 . . . . . . . . . . . Open Door 1 | . . . . . . . . . . . . 1 Unreport Threat 1 | . . . . . . . . 1 . . . . Recall Reinforcements 1 | . 1 . . . . . . . . . . . Derelict Proto ID Bank 1 | . . . . . 1 . . . . . . . Fabricator Hacks 3 | . . . . . . . . 1 2 . . . Network Status 1 | . . . . . . . . . 1 . . . Build 2 | . . . . . . . . 1 1 . . . Repair Station Hacks 2 | . . . . . . . . . 2 . . . Scan Component 1 | . . . . . . . . . 1 . . . Repair 1 | . . . . . . . . . 1 . . . Recycling Unit Hacks 5 | . 1 . . 4 . . . . . . . . Retrieve Components 5 | . 1 . . 4 . . . . . . . . Scanalyzer . | . . . . . . . . . . . . . Garrison Access Hacks 1 | . . . . . . . . 1 . . . . Seal Access 1 | . . . . . . . . 1 . . . . Unauthorized Hacks 22 | . 8 . . 10 . 1 . 2 1 . . . Terminals 15 | . 8 . . 6 . 1 . . . . . . Assimilate 1 | . 1 . . . . . . . . . . . Botnet 3 | . 2 . . 1 . . . . . . . . Skim 11 | . 5 . . 5 . 1 . . . . . . Fabricators . | . . . . . . . . . . . . . Repair Stations 3 | . . . . . . . . 2 1 . . . Recycling Units 4 | . . . . 4 . . . . . . . . Tunnel 4 | . . . . 4 . . . . . . . . Scrapoids 3 | . . . . . . . . 2 1 . . . Scanalyzers . | . . . . . . . . . . . . . Garrison Access . | . . . . . . . . . . . . . Data Cores Recovered 1 | . . . . . . . . . 1 . . . Used 1 | . . . . . . . . . 1 . . . Hacking Detections 18 | . 6 . . 8 . 1 . 1 2 . . . Full Trace Events 5 | . 1 . . 2 . 1 . 1 . . . . Feedback Events 1 | . . . . 1 . . . . . . . . Corruption 1 | . . . . 1 . . . . . . . . Feedback Blocked . | . . . . . . . . . . . . . Robot Schematics Acquired . | . . . . . . . . . . . . . Robots Built . | . . . . . . . . . . . . . Authchips . | . . . . . . . . . . . . . Time . | . . . . . . . . . . . . . Total Robot Build Rating . | . . . . . . . . . . . . . Part Schematics Acquired . | . . . . . . . . . . . . . Parts Built 4 | . . . . . . . . 2 2 . . . Authchips . | . . . . . . . . . . . . . Time 163 | . . . . . . . . 117 46 . . . Total Part Build Rating 32 | . . . . . . . . 14 18 . . . Parts Repaired 1 | . . . . . . . . . 1 . . . Time 37 | . . . . . . . . . 37 . . . Parts Recycled . | . . . . . . . . . . . . . Recycled Matter . | . . . . . . . . . . . . . Retrieved Matter . | . . . . . . . . . . . . . Retrieved Components 19 | . 9 . . 10 . . . . . . . . Parts Scanalyzed . | . . . . . . . . . . . . . Part Schematics Acquired . | . . . . . . . . . . . . . Parts Damaged . | . . . . . . . . . . . . . Bothacking | -11 -10 -10 -10 -7 -7 -5 -5 -5 -4 -4 -4 -4 ------------ Run | Yrd Mat Min Sub Rec Scr Fac Was Fac Fac Upp Upp War Used RIF Installer . | . . . . . . . . . . . . . Robots Hacked . | . . . . . . . . . . . . . Non-combat . | . . . . . . . . . . . . . Combat . | . . . . . . . . . . . . . Robot Hacks Applied . | . . . . . . . . . . . . . Relay Couplers Released . | . . . . . . . . . . . . . Fabnet Peak Effective % . | . . . . . . . . . . . . . Robots Rewired 12 | . . . . 7 . . . . . . . 5 Allies Hacked 1 | . . . . . . . . 1 . . . . Hacks Repelled . | . . . . . . . . . . . . . Allies | -11 -10 -10 -10 -7 -7 -5 -5 -5 -4 -4 -4 -4 -------- Run | Yrd Mat Min Sub Rec Scr Fac Was Fac Fac Upp Upp War Total Allies 27 | . . . . 7 . . . 10 5 . . 5 Largest Group 5 | . . . . 5 2 2 . 5 5 . . 5 Highest-Rated Group 284 | . . . . 94 50 50 . 244 241 . . 284 Highest-Rated Ally 68 | . . . . 40 40 40 . 50 50 . . 68 Total Orders . | . . . . . . . . . . . . . Ally Attacks 282 | . . . . 16 . . . 78 136 . . 52 Total Damage 7335 | . . . . 363 . . . 1677 3080 . . 2215 Kills 42 | . . . . 1 . . . 12 17 . . 12 Allies Corrupted 1 | . . . . . . . . . 1 . . . Allies Melted 3 | . . . . . . . . 1 . . . 2 Intel | -11 -10 -10 -10 -7 -7 -5 -5 -5 -4 -4 -4 -4 ------- Run | Yrd Mat Min Sub Rec Scr Fac Was Fac Fac Upp Upp War Robot Analysis Total . | . . . . . . . . . . . . . Derelict Logs Recovered 4 | . . . 2 . 1 . . . . 1 . . Drone Launches . | . . . . . . . . . . . . . Drone Recoveries . | . . . . . . . . . . . . . Exploration | -11 -10 -10 -10 -7 -7 -5 -5 -5 -4 -4 -4 -4 ------------- Run | Yrd Mat Min Sub Rec Scr Fac Was Fac Fac Upp Upp War Turns Passed 11631 | 105 601 381 1785 1283 1423 567 167 2111 1364 497 412 935 Spaces Moved 7369 | 48 319 220 1020 765 1223 340 249 980 755 398 343 709 Core 230 | 2 . . . . . . 220 . . . . 8 Treads 2572 | 46 319 220 1020 520 . . 1 445 1 . . . Legs . | . . . . . . . . . . . . . Wheels 4567 | . . . . 245 1223 340 28 535 754 398 343 701 Hover . | . . . . . . . . . . . . . Flight . | . . . . . . . . . . . . . Fastest Speed 50 | 50 160 160 160 115 115 115 50 130 100 90 100 90 Average Speed 135 | 155 160 160 160 145 115 129 60 172 136 101 111 116 Slowest Speed 1500 | 160 160 160 160 160 115 130 250 225 305 120 130 1500 Overloaded Moves . | . . . . . . . . . . . . . Propulsion Burnouts . | . . . . . . . . . . . . . Robots Hopped . | . . . . . . . . . . . . . Cave-ins Triggered . | . . . . . . . . . . . . . Exploration Rate (%) 49 | 5 70 40 31 94 83 9 86 16 22 62 45 80 Regions Visited 12 Branch Regions 7 Pre-discovered Areas 9 | . 2 . 1 4 1 . . . . 1 . . Known Exits Taken 3 | . 1 1 . . 1 . . . . . . . Unknown Exits Taken 7 | 1 . . 1 1 . . . 1 1 1 1 . Scrap Searched 13 | . . 1 . . 7 . . . . 3 2 . Spaces Dug 24 | . . . 14 5 . . . . 1 . . 4 Terrain Destroyed 140 | . . 7 25 5 . . . 13 59 18 2 11 Melee 17 | . . . 10 3 . . . . . . . 4 Projectile 73 | . . . 4 2 . . . 13 27 18 2 7 AOE 49 | . . 7 11 . . . . . 31 . . . Terrain Rammed . | . . . . . . . . . . . . . Walls Destroyed . | . . . . . . . . . . . . . Machines Disabled . | . . . . . . . . . . . . . Actions | -11 -10 -10 -10 -7 -7 -5 -5 -5 -4 -4 -4 -4 --------- Run | Yrd Mat Min Sub Rec Scr Fac Was Fac Fac Upp Upp War Total 8394 | 64 358 239 1115 909 1242 418 266 1215 977 451 356 784 Wait 209 | 1 . 1 2 25 . 38 3 75 61 1 1 1 Move 7359 | 48 318 219 1019 764 1222 340 248 979 754 397 342 709 Hop . | . . . . . . . . . . . . . Pick Up 101 | 2 8 4 15 10 8 4 3 20 16 4 1 6 Fast Attach 47 | 7 2 1 3 2 . 6 1 22 1 1 1 . Attach 36 | . . 1 1 . . 2 1 3 10 13 3 2 Detach 16 | . . 1 . . . . . 4 2 8 . 1 Swap 64 | . 1 4 16 8 5 4 . 8 15 2 . 1 Drop 71 | . 2 1 12 15 7 2 6 5 17 4 . . Fire 316 | 5 26 7 19 8 . 20 1 96 97 21 4 12 Melee 58 | . . . 28 18 . . . . . . 4 8 Ram 1 | . . . . . . . . . 1 . . . Kick . | . . . . . . . . . . . . . Crush 4 | 1 1 . . . . . . 2 . . . . Escape Stasis . | . . . . . . . . . . . . . Rewire 100 | . . . . 56 . . . . . . . 44 Trap 3 | . . . . . . . 3 . . . . . Miscellaneous 9 | . . . . 3 . 2 . 1 3 . . . Route ------- -11/Scrapyard -10/Materials (discovered 3 exits: *Mat x2 / *Min) -10/Mines (discovered 4 exits: Mat x2 / Exi / *Sub) -10/Subcaves (discovered 2 exits: [*Mat] / *Rec) -7/Recycling (discovered 2 exits: *Fac / *Scr) -7/Scraptown (discovered 2 exits: *Fac x2) -5/Factory -5/Waste -5/Factory (discovered 2 exits: *Fac / [*Upp]) -4/Factory -4/Upper Caves -4/Upper Caves -4/Warlord History --------- Turn | Location | Event 15 | -11/Scrapyard | Discovered new exit (range 16) 106 | -11/Scrapyard | Entered Materials 308 | -10/Materials | Build established: Mutant 386 | -10/Materials | Learned 4 Recycling zone layouts 426 | -10/Materials | Identified exit to Mines 442 | -10/Materials | Discovered new exit (range 5) 479 | -10/Materials | Learned location of 2 exits from Mines 492 | -10/Materials | Learned Storage security intel 498 | -10/Materials | Learned Storage trap positions 502 | -10/Materials | Learned location of Recycling (-7) 515 | -10/Materials | Identified exit to Materials 539 | -10/Materials | Learned location of Mines (-9) 707 | -10/Materials | Entered Mines 709 | -10/Mines | Identified exit to Subcaves 709 | -10/Mines | Identified exit to Exiles 744 | -10/Mines | A weapon hastily lodged in a ceiling crevice suddenly fell to the ground 874 | -10/Mines | Joined a pair of Derelicts in attacking an 0b10 outpost 1088 | -10/Mines | Entered Subcaves 1138 | -10/Subcaves | Learned location of 1 exit from Materials 1705 | -10/Subcaves | Shifting Twisted Machinery released Mak. Light Armor Plating 1706 | -10/Subcaves | Shifting Twisted Machinery released Sub. Laser 1867 | -10/Subcaves | Core integrity fell below 50% 1987 | -10/Subcaves | Discovered new exit (range 11) 1998 | -10/Subcaves | Discovered new exit (range 16) 2873 | -10/Subcaves | Entered Recycling 2874 | -7/Recycling | Identified exit to Factory 3424 | -7/Recycling | Build established: Commander-Mutant 3729 | -7/Recycling | Scanned before Scraplab entrance 3806 | -7/Recycling | Lost 3 allies 4066 | -7/Recycling | Build established: Mutant 4117 | -7/Recycling | Entered Scraplab 4127 | -7/Recycling | Discovered new exit (range 4) 4156 | -7/Recycling | Entered Scraptown 4156 | -7/Scraptown | Accompanied by 2 allies 4156 | -7/Scraptown | System corruption cleaned by C-Scrubber 4318 | -7/Scraptown | Visited UFD Registry 4318 | -7/Scraptown | Registered with UFD as "Gammaroller" 4321 | -7/Scraptown | Heard Great Nut preacher, LISTEN AND RECITE! 4403 | -7/Scraptown | Visited Cyclists 4437 | -7/Scraptown | Visited TADAMA 4468 | -7/Scraptown | Visited Awakened 4691 | -7/Scraptown | Visited Fellowship of the Rings 4722 | -7/Scraptown | Visited SPCMW 4796 | -7/Scraptown | Scanned Subdweller tech in exchange for log data 4800 | -7/Scraptown | Learned location of Armory (-3) 4859 | -7/Scraptown | Discovered exit to Factory (range 13) 4972 | -7/Scraptown | Visited Science Guys 5028 | -7/Scraptown | Visited Chapter 10 5082 | -7/Scraptown | Delivered Scrap Shield to a Scientist 5154 | -7/Scraptown | Visited A0-MCA Data Center 5161 | -7/Scraptown | Given a C+ rating by A0-MCA 5184 | -7/Scraptown | Visited DA-N13 Charitable Foundation 5194 | -7/Scraptown | Found DCF Scrap (32 items) 5231 | -7/Scraptown | Visited Curators Association 5251 | -7/Scraptown | Visited Science Testing Area 5272 | -7/Scraptown | Visited Observation Area 5437 | -7/Scraptown | Found A0-MCA's Component Scanner 5554 | -7/Scraptown | Found Scrap Suit 5570 | -7/Scraptown | Discovered exit to Factory (range 5) 5579 | -7/Scraptown | Entered Factory 5579 | -5/Factory | Accompanied by 2 allies 5579 | -5/Factory | Evolved 10 slots: Power x1, Utility x8, Weapon x1 5730 | -5/Factory | Discovered new exit (range 9) 5874 | -5/Factory | Build established: Tank 6146 | -5/Factory | Sucked down chute 6146 | -5/Factory | Entered Waste 6161 | -5/Waste | Spotted C-40 Crusher 6178 | -5/Waste | Spotted C-40 Crusher 6179 | -5/Waste | Spotted C-40 Crusher 6191 | -5/Waste | Released all parts (13) 6193 | -5/Waste | Spotted C-40 Crusher 6223 | -5/Waste | Spotted C-40 Crusher 6228 | -5/Waste | Spotted C-40 Crusher 6253 | -5/Waste | Discovered new exit (range 16) 6313 | -5/Waste | Entered Factory 6425 | -5/Factory | Build established: Mutant 6515 | -5/Factory | Discovered new exit (range 15) 6696 | -5/Factory | Garrison activated, responded to threat 7236 | -5/Factory | Build established: Hacker-Mutant 7513 | -5/Factory | Scrapoid reinforcements arrived 7550 | -5/Factory | Found Scrap Suit 7578 | -5/Factory | Found Scrap Suit 7757 | -5/Factory | Found Scrap Suit 7871 | -5/Factory | Discovered new exit (range 5) 8047 | -5/Factory | Fabricated Imp. Force Field (x2) 8054 | -5/Factory | Build established: Scavenger-Scrapper 8278 | -5/Factory | Scrapoids reinforcements arrived? 8424 | -5/Factory | Entered another Factory area 8424 | -4/Factory | Accompanied by 3 allies 8424 | -4/Factory | Evolved 2 slots: Propulsion x2 8485 | -4/Factory | Repaired Biometal Heavy Treads 8720 | -4/Factory | Fabricated Enh. Quantum Rifle (x2) 8930 | -4/Factory | Spotted B-86 Titan 9127 | -4/Factory | Cargo convoy interrupted 9218 | -4/Factory | First assault squad dispatched 9449 | -4/Factory | Scrapoids reinforcements arrived? 9734 | -4/Factory | Lost 7 parts (2p3u2w) 9780 | -4/Factory | Discovered new exit (range 5) 9788 | -4/Factory | Entered Upper Caves 9790 | -4/Upper Caves | UFD Scientist delivered a prototype 9793 | -4/Upper Caves | Found Prototype Protection 9798 | -4/Upper Caves | Identified Enh. Scrap Shield 9834 | -4/Upper Caves | Lost 3 parts (1n1u1w) 9964 | -4/Upper Caves | Encountered a Warlord checkpoint 10240 | -4/Upper Caves | Attracted the attention of an 0b10 outpost 10279 | -4/Upper Caves | Discovered new exit (range 6) 10285 | -4/Upper Caves | Entered another Upper Caves area 10305 | -4/Upper Caves | Lost 6 parts (1p4u1w) 10576 | -4/Upper Caves | Discovered new exit (range 8) 10697 | -4/Upper Caves | Entered Warlord 10731 | -4/Warlord | System corruption cleaned by Quarantine Array 10797 | -4/Warlord | Warlord's base attacked by MAIN.C 11147 | -4/Warlord | Warlord forces counterattacked 11253 | -4/Warlord | Found Prototype Energy Gun 11253 | -4/Warlord | Identified Vortex Shotgun 11259 | -4/Warlord | Found Vortex Shotgun 11261 | -4/Warlord | Found Vortex Shotgun 11353 | -4/Warlord | Spotted Striker 11419 | -4/Warlord | Spotted B-90 Cyclops 11423 | -4/Warlord | Spotted Striker 11425 | -4/Warlord | Destroyed B-90 Cyclops 11442 | -4/Warlord | Destroyed Striker 11461 | -4/Warlord | Lost 3 allies 11472 | -4/Warlord | Warlord base infiltrated, sounded retreat 11499 | -4/Warlord | Core integrity fell below 50% 11514 | -4/Warlord | Core integrity fell below 20% 11541 | -4/Warlord | Lost 12 parts (2p3n4u3w) 11628 | -4/Warlord | Spotted Striker 11632 | -4/Warlord | Destroyed by H-88 Terminator with KE Penetrator Last Messages --------------- 11527_ The unstable cave ceiling collapses. 11534_ Slug penetrates Enhanced Demolisher. 11535_ The unstable cave ceiling collapses. 11538_ Slug penetrates Earth. 11538_ Slug penetrates Enhanced Demolisher. 11539_ The unstable cave ceiling collapses. 11549_ TF-MFJ(p) crushed by falling debris. 11552_ The unstable cave ceiling collapses. 11587_ ANNOUNCEMENT: MAIN.C reinforcements approaching through caves, arriving soon. 11597_ ANNOUNCEMENT: Detected 3 Grunt squads, 1 Programmer squad, with prototype support. 11618_ Slug penetrates Earth. 11619_ The unstable cave ceiling collapses. 11619_ Knocked back. 11620_ Penetrated by Slug. 11620_ Slug penetrates Earth. 11621_ Penetrated by Slug. 11624_ Slug penetrates Earth. 11626_ Penetrated by Slug. Map ----- +----------------------------------------------------+ | ?????????????????????????????# """#???? # | | ?????????????????????????????# """#??? # | | ###??????????????????????????# """#??? # | | #?????????????#######??????# #?? # | | #????????????#"""""""#?????? #?? # | | #????????????#"""X"""#???????? ??? # | | #????????????#"X X"#?#########/##### # | | #+#????????????#"" ""#?# # + # | | #?????????????"" ""??# # #### # | | ###??????????##### #???# + #??? #### | | ##############X# ##+#????# # ###?? #### | | # ###### # # ########## | | # + # | | # ###### # | | #//############# #????######## | | # ############# #######?????##"#############[ | | # """""""## ##""""##?????# #?## | | # """"## #?"X "#?????# #?#"% | | #" """"## #### "#?????# ####= | | #"" """ ## + "#####?# # ##= | | #"" ## # " ""# # # ""![% | | #"" " ## ##""" ## ## #![!% | | #"" """## ### # # ##### %[!!=/ #%%%% | | #"" X""""## % #######!==[ ##=/%[ | | #""""""" """## %]h! !!%/ | | #"""""""""""""## @ K! h == % =% | | ################ # ## =[! | | ########## # % ###### ! | | # ###cpc # "# | | # g Y W # "" | | # lgd mc c "" # | | %g cxg # """ | | # imYMm ## """ | | g p ####### ## #### # | | # m # # #??### # | | # #????## # | | # # #?????# | | #^ ^### #?????## | | # #?## #??????## | | ##########+###+#### #???????## | | ?????# # #????????# # | | ?????# """"" ### #????????# # | | ?????? """"" #?# #????????########+## | | ??????? """"" #??#########???????????????# | | ????????? #???????????????????#####??# | | ?????????##########???????????????????# ## | | ??????????????????????????????????????# + | | ??????????????????????????????????????# # | | ???? #????????????????????????????????# # | | ?? #????????????????????????????????######?# | +----------------------------------------------------+ Best States ------------- Heat Dissipation 86 Coolant Potential 80 Energy Generation 37 Energy Capacity 550 Matter Stores 379 Matter Capacity 1300 Sight Range 16 Terrain Scan Density 10 Additional Mass Support 9 Corruption Containment 16 Armor Coverage 800 Core Shielding 20 Evasion (%) 50 Armor Integrity Analysis 30 Recoil Reduction 2 Salvage Targeting 4 Offensive Hacking 28 Defensive Hacking 12 Item Schematics ----------------- None Robot Schematics ------------------ None Fabricated ------------ Imp. Force Field | x2 | -5/Factory | Preloaded Enh. Quantum Rifle | x2 | -4/Factory | Preloaded Alien Tech Used ----------------- None Achievements -------------- None Challenges ------------ None Game ------ Seed TerrainAngularPick Manual? 0 Play Time 02:09:47 Cumulative 241.9 hours Start 2024.09.08 @ 12:16:13 End 2024.09.08 @ 23:50:08 Sessions 1 Manual Loads 0 Difficulty Rogue Special Mode None Game No. 205 Rogue 205 Adventurer 0 Explorer 0 Win Type - Total 1 Types 0/0/0/1/0/0/0/0/0 Lore% 66 Gallery% 74 Achievement% 55 Wizard Run 0 Options --------- Layout 2 ASCII 0 Keyboard 1 Movement Vi Keybinds 0 Fullscreen 1 Font 32/SmallcapsGlow Map View 77x44 Zoom Use 0% Tactical HUD 1 Map Filters NONE Filters NONE Steam 1 RUN: 483191cb-04e4-443c-8e7a-a6cb61a6a05a